lending/lending_fUSD_20240509
["ID","MTS","AMOUNT","RATE_DAILY","PERIOD"]
[326706792,1715274639352,-1325.55749896,0.0001607,2]
[326706794,1715274639362,-2000.0,0.0001608,2]
[326706796,1715274639371,-2000.0,0.0001609,2]
[326706797,1715274639381,-2000.0,0.000161,2]
[326706799,1715274639391,-3155.741437,0.0001611,2]
[326706801,1715274639400,-1293.30653448,0.00017259,2]
[326706803,1715274639410,-1139.65,0.00017318,2]
[326706805,1715274639419,-3424.89,0.00017323,2]
[326706806,1715274639428,-200.0,0.00017442,2]
[326706807,1715274639437,-1237.86,0.00017505,2]
[326706808,1715274639446,-482.5,0.0001752,2]
[326706809,1715274639456,-2307.93,0.00017543,2]
[326706810,1715274639465,-157.89,0.00017659,2]
[326706811,1715274639475,-6066.66,0.00017741,2]
[326706812,1715274639484,-467.51,0.00017857,2]
[326706813,1715274639493,-1852.42,0.00017975,2]
[326706814,1715274639503,-1050.0,0.00018,3]
[326706815,1715274639512,-1194.67,0.00018078,2]
[326706816,1715274639521,-420.08,0.00018078,2]
[326706817,1715274639530,-150.0,0.00018078,2]
[326706818,1715274639539,-300.0,0.00018078,2]
[326706819,1715274639548,-420.08,0.00018078,2]
[326706821,1715274639557,-157.89,0.00018119,2]
[326706822,1715274639567,-1391.98,0.00018255,2]
[326706823,1715274639577,-150.0,0.00018305,2]
[326706824,1715274639586,-1349.96,0.00018417,2]
[326706825,1715274639597,-500.0,0.000185,2]
[326706826,1715274639607,-157.89,0.00018579,2]
[326706827,1715274639616,-155.67,0.00018645,2]
[326706828,1715274639626,-431.65,0.00018651,2]
[326706829,1715274639635,-250.0,0.00018849,2]
[326706830,1715274639644,-163.06,0.000189,2]
[326706831,1715274639654,-300.0,0.000189,2]
[326706832,1715274639663,-589.0,0.000189,3]
[326706833,1715274639673,-9999.99,0.000189,2]
[326706834,1715274639683,-2467.0,0.000189,3]
[326706835,1715274639692,-1000.0,0.000189,2]
[326706836,1715274639701,-155.0,0.00019,2]
[326706837,1715274639711,-615.37150274,0.00019053,2]
[326706838,1715274639721,-2053.83,0.00019055,2]
[326706839,1715274639731,-13695.05,0.00019055,2]
[326706840,1715274639741,-226.24,0.00019129,2]
[326706841,1715274639751,-200.0,0.00019145,2]
[326706842,1715274639761,-152.27,0.00019178,2]
[326706843,1715274639770,-157.81,0.00019178,2]
[326706844,1715274639781,-55000.0,0.00019178,2]
[326706845,1715274639791,-1287.02,0.00019191,2]
[326706846,1715274639800,-594.51,0.000195,2]
[326706847,1715274639810,-150.0,0.00019556,3]
[326706848,1715274639819,-2601.74537014,0.0002,2]
[326706849,1715274639971,-1100.0,0.0002,3]
[326706850,1715274639982,-155.0,0.0002,2]
[326706851,1715274639996,-443.9629901,0.0002,2]
[326706852,1715274640006,-293.61360366,0.0002,2]
[326706853,1715274640016,-155.67,0.00020015,2]
[326706854,1715274640026,-364.54,0.00020145,2]
[326706855,1715274640038,-250.0,0.00020375,2]
[326706856,1715274640048,-910.56,0.00020423,2]
[326706857,1715274640058,-233.96,0.00020573,2]
[326706858,1715274640068,-322.72,0.00020767,2]
[326706859,1715274640081,-3705.08,0.00020769,2]
[326706860,1715274640090,-21683.44055822,0.0002093,2]
[326706861,1715274640100,-2000.0,0.00021,2]
[326706862,1715274640110,-2011.93716249,0.00021,2]
[326706863,1715274640119,-2000.0,0.0002101,2]
[326706864,1715274640129,-2000.0,0.0002102,2]
[326706865,1715274640138,-2000.0,0.0002103,2]
[326706866,1715274640148,-2000.0,0.0002104,2]
[326706867,1715274640157,-2000.0,0.0002105,2]
[326706868,1715274640167,-2000.0,0.0002106,2]
[326706869,1715274640176,-2000.0,0.0002107,2]
[326706870,1715274640186,-2000.0,0.0002108,2]
[326706871,1715274640195,-164.29,0.00021081,2]
[326706872,1715274640205,-2000.0,0.0002109,2]
[326706873,1715274640214,-6385.23,0.0002109,2]
[326706874,1715274640225,-2000.0,0.000211,2]
[326706875,1715274640234,-3994.266152,0.0002111,2]
[326706876,1715274640243,-213.14211932,0.00021209,2]
[326706877,1715274640252,-155.0,0.00021209,2]
[326706878,1715274640261,-23900.0,0.00021211,2]
[326706879,1715274640270,-1000.0,0.00021263,2]
[326706880,1715274640281,-2852.6,0.0002137,2]
[326706881,1715274640290,-167.13,0.0002139,2]
[326706882,1715274640300,-495.75789458,0.00021429,2]
[326706883,1715274640309,-444.58769258,0.00021429,2]
[326706884,1715274640318,-154.76908816,0.00021435,2]
[326706885,1715274640327,-10000.0,0.00021765,2]
[326706886,1715274640337,-155.44164444,0.00021824,2]
[326706887,1715274640346,-2000.0,0.00021918,3]
[326706888,1715274640355,-250.0,0.00021918,2]
[326706889,1715274640365,-2000.0,0.00021918,2]
[326706890,1715274640374,-280.46,0.00021924,2]
[326706891,1715274640383,-1150.0,0.00022,3]
[326706892,1715274640392,-3131.47103319,0.00022169,2]
[326706893,1715274640401,-156.34710433,0.00022275,2]
[326706894,1715274640410,-165.30353314,0.00022316,2]
[326706895,1715274640420,-158.32485788,0.00022358,2]
[326706896,1715274640429,-155.96830015,0.00022432,2]
[326706897,1715274640439,-155.18160784,0.00022438,2]
[326706898,1715274640448,-1749.0834379,0.00022499,5]
[326706899,1715274640458,-167.13,0.00022567,2]
[326706900,1715274640468,-155.44164444,0.00022699,2]
[326706901,1715274640478,-6385.23,0.00022878,2]
[326706902,1715274640488,-21683.44055815,0.00022888,2]
[326706903,1715274640498,-444.0,0.00022983,2]
[326706904,1715274640507,-216.0,0.00022983,2]
[326706905,1715274640517,-1143.459,0.00022983,2]
[326706906,1715274640526,-3154.0,0.00022983,2]
[326706907,1715274640536,-5907.0,0.00022983,2]
[326706908,1715274640546,-288.0,0.00022983,2]
[326706909,1715274640555,-2295.0,0.00022983,2]
[326706910,1715274640564,-37807.0,0.00022983,2]
[326706911,1715274640574,-1058.0,0.00022983,2]
[326706912,1715274640583,-156.34710433,0.00023022,2]
[326706913,1715274640592,-166.11252061,0.00023099,2]
[326706914,1715274640602,-156.34710433,0.00023123,2]
[326706915,1715274640611,-154.76908816,0.00023317,2]
[326706916,1715274640620,-322.72,0.00023363,2]
[326706917,1715274640630,-3705.08,0.00023509,2]
[326706918,1715274640639,-170.57,0.00023568,2]
[326706919,1715274640648,-1000.0,0.00023625,2]
[326706920,1715274640657,-167.13,0.00023744,2]
[326706921,1715274640666,-155.96830015,0.00023941,2]
[326706922,1715274640676,-155.54925684,0.00023998,2]
[326706923,1715274640685,-9988.78574383,0.00024,2]
[326706924,1715274640694,-1200.0,0.00024,3]
[326706925,1715274640703,-743.112632,0.00024,2]
[326706926,1715274640713,-743.112632,0.00024,2]
[326706927,1715274640724,-743.112632,0.00024,2]
[326706928,1715274640733,-743.112632,0.00024,2]
[326706929,1715274640743,-743.112632,0.00024,2]
[326706930,1715274640752,-743.112632,0.00024,2]
[326706931,1715274640762,-743.112632,0.00024,2]
[326706932,1715274640772,-743.112632,0.00024,2]
[326706933,1715274640783,-743.112632,0.00024,2]
[326706934,1715274640793,-743.112632,0.00024,2]
[326706935,1715274640802,-153.89076617,0.00024036,2]
[326706936,1715274640811,-2007.9823457,0.00024221,2]
[326706937,1715274640821,-180.0,0.0002423,2]
[326706938,1715274640830,-3424.89,0.00024252,2]
[326706939,1715274640839,-156.54295098,0.00024308,2]
[326706940,1715274640848,-153.837712,0.00024499,2]
[326706941,1715274640857,-1000.0,0.000245,2]
[326706942,1715274640867,-6385.23,0.00024543,2]
[326706943,1715274640876,-972.0,0.00024553,2]
[326706944,1715274640885,-2156.0,0.00024553,2]
[326706945,1715274640894,-1397.0,0.00024553,2]
[326706946,1715274640904,-649.731,0.00024553,2]
[326706947,1715274640913,-1260.514,0.00024553,2]
[326706948,1715274640922,-1788.0,0.00024553,2]
[326706949,1715274640932,-1226.0,0.00024553,2]
[326706950,1715274640940,-438.0,0.00024553,2]
[326706951,1715274640950,-421.0,0.00024553,2]
[326706952,1715274640959,-611.0,0.00024553,2]
[326706953,1715274640970,-196.033,0.00024553,2]
[326706954,1715274640979,-809.0,0.00024553,2]
[326706955,1715274640993,-151.677,0.00024553,2]
[326706956,1715274641002,-151.013,0.00024553,2]
[326706957,1715274641011,-706.097,0.00024553,2]
[326706958,1715274641021,-2411.0,0.00024553,2]
[326706959,1715274641031,-1654.07,0.00024553,2]
[326706960,1715274641040,-159.509646,0.00024621,2]
[326706961,1715274641049,-2111.182368,0.00024621,2]
[326706962,1715274641059,-164.647575,0.00024621,2]
[326706963,1715274641068,-459.965925,0.00024621,2]
[326706964,1715274641078,-173.568145,0.00024621,2]
[326706965,1715274641088,-170.460255,0.00024621,2]
[326706966,1715274641099,-1905.385836,0.00024621,2]
[326706967,1715274641109,-179.820782,0.00024621,2]
[326706968,1715274641119,-490.817412,0.00024621,2]
[326706969,1715274641128,-8444.729469,0.00024621,2]
[326706970,1715274641138,-817.7172,0.00024621,2]
[326706971,1715274641148,-318.280786,0.00024621,2]
[326706972,1715274641159,-170.460251,0.00024621,2]
[326706973,1715274641168,-7621.543344,0.00024621,2]
[326706975,1715274641178,-157.6555605,0.00024788,2]
[326706976,1715274641187,-21683.44055815,0.00024847,2]
[326706977,1715274641196,-5082.24073112,0.00024918,2]
[326706979,1715274641574,-1302.98926888,0.00024918,2]
[326706982,1715274641586,-167.13,0.00024921,2]
[326706986,1715274641598,-296.71852245,0.00024927,2]
[326706989,1715274641610,-155.31169365,0.00024928,2]
[326706993,1715274641621,-159.509646,0.00024929,2]
[326706996,1715274641632,-2111.182368,0.00024929,2]
[326706998,1715274641644,-164.647575,0.00024929,2]
[326707001,1715274641654,-459.965925,0.00024929,2]
[326707002,1715274641665,-1905.385836,0.00024929,2]
[326707004,1715274641676,-179.820782,0.00024929,2]
[326707005,1715274641686,-490.817412,0.00024929,2]
[326707007,1715274641697,-8444.729469,0.00024929,2]
[326707008,1715274641706,-817.7172,0.00024929,2]
[326707010,1715274641718,-318.280786,0.00024929,2]
[326707011,1715274641728,-7621.543344,0.00024929,2]
[326707013,1715274641742,-156.34710433,0.00024977,2]
[326707015,1715274641752,-9141.6134401,0.0002499,2]
[326707016,1715274641762,-17708.68633321,0.00025,2]
[326707018,1715274641772,-155.0,0.00025,2]
[326707019,1715274641783,-473.08976564,0.00025,2]
[326707021,1715274641793,-155.0,0.00025,2]
[326707023,1715274641815,-2218.57256714,0.00025,2]
[326707025,1715274641826,-212.9822371,0.00025,2]
[326707026,1715274641837,-155.0,0.00025,2]
[326707028,1715274641848,-933.29171746,0.00025,2]
[326707030,1715274641858,-6385.23,0.00025226,2]
[326707032,1715274641868,-159.509646,0.00025236,2]
[326707033,1715274641879,-2111.182368,0.00025236,2]
[326707035,1715274641889,-164.647575,0.00025236,2]
[326707036,1715274641899,-459.965925,0.00025236,2]
[326707038,1715274641909,-173.568145,0.00025236,2]
[326707040,1715274641919,-1905.385836,0.00025236,2]
[326707041,1715274641930,-179.820782,0.00025236,2]
[326707043,1715274641939,-490.817412,0.00025236,2]
[326707045,1715274641949,-8444.729469,0.00025236,2]
[326707046,1715274641958,-817.7172,0.00025236,2]
[326707048,1715274641968,-318.280786,0.00025236,2]
[326707049,1715274641977,-7621.543344,0.00025236,2]
[326707050,1715274641988,-157.6555605,0.00025441,2]
[326707051,1715274642001,-173.47911918,0.00025448,2]
[326707053,1715274642011,-154.76908816,0.00025459,2]
[326707055,1715274642021,-432.36004694,0.00025497,2]
[326707056,1715274642031,-192.797835,0.00025505,2]
[326707057,1715274642041,-1000.0,0.00025543,2]
[326707058,1715274642051,-159.509646,0.00025544,2]
[326707059,1715274642061,-2111.182368,0.00025544,2]
[326707060,1715274642072,-164.647575,0.00025544,2]
[326707061,1715274642082,-459.965925,0.00025544,2]
[326707062,1715274642092,-1905.385836,0.00025544,2]
[326707063,1715274642101,-179.820782,0.00025544,2]
[326707064,1715274642272,-490.817412,0.00025544,2]
[326707065,1715274642281,-8444.729469,0.00025544,2]
[326707066,1715274642291,-817.7172,0.00025544,2]
[326707067,1715274642300,-318.280786,0.00025544,2]
[326707068,1715274642310,-7621.543344,0.00025544,2]
[326707069,1715274642320,-6758.87283024,0.00025548,2]
[326707070,1715274642329,-489.20794399,0.0002555,2]
[326707071,1715274642339,-154.76908816,0.00025689,2]
[326707072,1715274642348,-157.3474644,0.00025802,2]
[326707073,1715274642358,-1273.78304217,0.0002585,2]
[326707074,1715274642367,-358.19784561,0.0002585,2]
[326707075,1715274642382,-155.21894956,0.00025851,2]
[326707076,1715274642392,-155.77262445,0.00025851,2]
[326707077,1715274642401,-155.46576905,0.00025851,2]
[326707078,1715274642411,-159.509646,0.00025852,2]
[326707079,1715274642420,-2111.182368,0.00025852,2]
[326707080,1715274642430,-164.647575,0.00025852,2]
[326707081,1715274642439,-459.965925,0.00025852,2]
[326707082,1715274642449,-173.568145,0.00025852,2]
[326707083,1715274642459,-1905.385836,0.00025852,2]
[326707084,1715274642469,-179.820782,0.00025852,2]
[326707085,1715274642479,-490.817412,0.00025852,2]
[326707086,1715274642489,-8444.729469,0.00025852,2]
[326707087,1715274642499,-817.7172,0.00025852,2]
[326707088,1715274642508,-318.280786,0.00025852,2]
[326707089,1715274642519,-7621.543344,0.00025852,2]
[326707090,1715274642528,-190.95509576,0.00025859,2]
[326707091,1715274642538,-155.44164444,0.00025941,2]
[326707092,1715274642549,-322.72,0.00025959,120]
[326707093,1715274642558,-444.0,0.00025983,2]
[326707094,1715274642568,-215.0,0.00025983,2]
[326707095,1715274642577,-1139.0,0.00025983,2]
[326707096,1715274642586,-3117.267,0.00025983,2]
[326707097,1715274642596,-5907.0,0.00025983,2]
[326707098,1715274642605,-288.0,0.00025983,2]
[326707099,1715274642615,-2295.0,0.00025983,2]
[326707101,1715274642624,-34515.213,0.00025983,2]
[326707103,1715274642634,-1055.0,0.00025983,2]
[326707105,1715274642643,-1000.0,0.00025988,2]
[326707107,1715274642653,-1250.0,0.00026,3]
[326707109,1715274642662,-6645.53602263,0.00026,2]
[326707111,1715274642671,-3705.08,0.00026248,2]
[326707113,1715274642682,-166.11252061,0.00026712,2]
[326707115,1715274642692,-155.96830015,0.00026732,2]
[326707117,1715274642702,-155.23123828,0.00026781,2]
[326707118,1715274642712,-21683.44055815,0.00026805,2]
[326707119,1715274642722,-190.95509576,0.00026869,2]
[326707120,1715274642730,-173.47911918,0.00026941,2]
[326707121,1715274642740,-155.0,0.00027,2]
[326707122,1715274642749,-2000.0,0.00027,2]
[326707123,1715274642758,-2000.0,0.0002701,2]
[326707124,1715274642768,-2000.0,0.0002702,2]
[326707125,1715274642777,-150.0,0.00027025,4]
[326707126,1715274642787,-2000.0,0.0002703,2]
[326707127,1715274642797,-2000.0,0.0002704,2]
[326707128,1715274642807,-150.0,0.00027041,2]
[326707129,1715274642816,-150.0,0.00027041,2]
[326707130,1715274642825,-150.0,0.00027041,2]
[326707131,1715274642835,-3416.395433,0.0002705,2]
[326707132,1715274642845,-1000.0,0.000271,2]
[326707133,1715274642855,-156.34710433,0.00027359,2]
[326707134,1715274642865,-156.34710433,0.00027363,2]
[326707135,1715274642874,-157.6555605,0.00027382,2]
[326707136,1715274642884,-200.0,0.00027397,2]
[326707137,1715274642894,-150.0,0.00027397,2]
[326707138,1715274642904,-3777.44,0.00027397,10]
[326707139,1715274642913,-3903.35,0.00027397,10]
[326707140,1715274642923,-155.44164444,0.00027422,2]
[326707141,1715274642933,-173.47911919,0.00027453,2]
[326707142,1715274642942,-970.257,0.00027553,2]
[326707143,1715274642952,-2156.0,0.00027553,2]
[326707144,1715274642962,-1395.818,0.00027553,2]
[326707145,1715274642973,-1788.0,0.00027553,2]
[326707146,1715274642985,-151.609,0.00027553,2]
[326707147,1715274642996,-421.0,0.00027553,2]
[326707148,1715274643006,-436.0,0.00027553,2]
[326707149,1715274643016,-610.0,0.00027553,2]
[326707150,1715274643027,-157.0,0.00027553,2]
[326707151,1715274643036,-807.0,0.00027553,2]
[326707152,1715274643046,-150.0,0.00027553,2]
[326707153,1715274643057,-1792.633,0.00027553,2]
[326707154,1715274643067,-1645.0,0.00027553,2]
[326707155,1715274643080,-157.6555605,0.00027587,2]
[326707156,1715274643090,-154.76908816,0.00027633,2]
[326707157,1715274643099,-154.76908816,0.00027664,2]
[326707158,1715274643109,-5026.89162971,0.0002774,2]
[326707159,1715274643119,-5000.0,0.0002774,2]
[326707160,1715274643128,-5000.0,0.0002774,2]
[326707161,1715274643138,-190.95509576,0.0002788,2]
[326707162,1715274643149,-150.0,0.00028118,2]
[326707163,1715274643159,-154.76908816,0.00028179,2]
[326707164,1715274643169,-173.47911917,0.00028302,2]
[326707165,1715274643179,-1000.0,0.0002835,2]
[326707166,1715274643188,-2517.278232,0.000284,2]
[326707167,1715274643198,-173.47911917,0.00028524,2]
[326707168,1715274643208,-150.0,0.00028526,7]
[326707169,1715274643218,-322.72,0.00028555,120]
[326707170,1715274643228,-156.34710433,0.00028684,2]
[326707171,1715274643237,-21683.44055815,0.00028764,2]
[326707172,1715274643246,-161.23033745,0.00028788,2]
[326707173,1715274643256,-1008.0156,0.000288,2]
[326707174,1715274643266,-2580.2581,0.000288,3]
[326707175,1715274643275,-150.0,0.00028839,2]
[326707176,1715274643285,-190.95509576,0.0002889,2]
[326707177,1715274643294,-10000.0,0.000289,2]
[326707178,1715274643304,-1500.0,0.000289,2]
[326707179,1715274643314,-421.093,0.00028983,2]
[326707180,1715274643323,-358.459,0.00028983,2]
[326707181,1715274643333,-288.0,0.00028983,2]
[326707182,1715274643342,-1171.0,0.00028983,2]
[326707183,1715274643352,-155.0,0.00029,2]
[326707184,1715274643362,-154.76908816,0.00029012,2]
[326707185,1715274643372,-58000.0,0.0002903,3]
[326707186,1715274643382,-58000.0,0.00029039,3]
[326707187,1715274643392,-5800.0,0.00029044,2]
[326707188,1715274643403,-5800.0,0.00029053,2]
[326707189,1715274643413,-5800.0,0.00029061,2]
[326707190,1715274643424,-5800.0,0.0002907,2]
[326707191,1715274643434,-1000.0,0.000291,2]
[326707192,1715274643444,-173.47911917,0.00029152,2]
[326707193,1715274643454,-500.0,0.00029178,3]
[326707194,1715274643463,-500.0,0.00029187,3]
[326707195,1715274643474,-500.0,0.00029196,3]
[326707196,1715274643483,-500.0,0.00029204,3]
[326707197,1715274643493,-500.0,0.00029213,3]
[326707198,1715274643502,-500.0,0.00029222,3]
[326707199,1715274643512,-151.0,0.00029225,2]
[326707200,1715274643522,-500.0,0.00029231,3]
[326707201,1715274643532,-500.0,0.0002924,3]
[326707202,1715274643542,-500.0,0.00029248,3]
[326707203,1715274643551,-500.0,0.00029257,3]
[326707204,1715274643561,-500.0,0.00029266,3]
[326707205,1715274643571,-500.0,0.00029275,3]
[326707206,1715274643581,-500.0,0.00029284,3]
[326707208,1715274643590,-500.0,0.00029292,3]
[326707209,1715274643602,-173.47911917,0.00029321,2]
[326707210,1715274643611,-157.6555605,0.00029345,2]
[326707212,1715274643620,-1500.0,0.000294,2]
[326707214,1715274643631,-405.306692,0.000294,2]
[326707216,1715274643641,-152.0,0.00029554,3]
[326707218,1715274643650,-150.0,0.0002956,2]
[326707219,1715274643660,-1008.8045108,0.00029618,30]
[326707222,1715274643670,-166.11252061,0.00029624,2]
[326707224,1715274643679,-501.79,0.00029626,2]
[326707225,1715274643689,-11602.54866737,0.000297,2]
[326707228,1715274643699,-1769.36965514,0.00029757,2]
[326707229,1715274643708,-293.92674886,0.00029758,2]
[326707232,1715274643719,-397.41478994,0.00029758,2]
[326707233,1715274643728,-200.0,0.00029759,2]
[326707236,1715274643744,-1000.0,0.00029759,10]
[326707238,1715274643758,-200.0,0.00029759,2]
[326707239,1715274643768,-151.0,0.0002979,2]
[326707240,1715274643778,-2516.294442,0.000298,2]
[326707241,1715274643789,-3358.08708506,0.000298,2]
[326707242,1715274643799,-415.0,0.0002986,5]
[326707243,1715274643809,-5113.27167962,0.00029882,3]
[326707244,1715274643819,-431.65,0.00029884,2]
[326707245,1715274643830,-1178.07810996,0.00029898,2]
[326707246,1715274643839,-174.76024923,0.00029899,2]
[326707247,1715274643850,-195.87309809,0.00029899,2]
[326707248,1715274643860,-171.93194922,0.000299,2]
[326707249,1715274643870,-173.47911918,0.000299,2]
[326707250,1715274643880,-500.0,0.000299,2]
[326707251,1715274644056,-1069.5881,0.000299,2]
[326707252,1715274644068,-173.47911919,0.000299,2]
[326707253,1715274644078,-173.47911918,0.000299,2]
[326707254,1715274644088,-4238.2279493,0.000299,2]
[326707255,1715274644098,-26752.89671007,0.000299,4]
[326707256,1715274644108,-173.77436798,0.000299,2]
[326707257,1715274644118,-190.95509576,0.000299,2]
[326707258,1715274644127,-178.77963369,0.000299,2]
[326707259,1715274644136,-150.05995938,0.000299,2]
[326707260,1715274644146,-3127.86305936,0.000299,2]
[326707261,1715274644156,-501.567033,0.0002997,2]
[326707262,1715274644166,-400.0,0.0002997,2]
[326707263,1715274644176,-400.0,0.0002997,2]
[326707264,1715274644185,-501.44116951,0.0002997,2]
[326707265,1715274644195,-151.0,0.0002999,2]
[326707266,1715274644205,-151.0,0.0002999,2]
[326707267,1715274644215,-151.0,0.0002999,2]
[326707268,1715274644225,-151.0,0.0002999,2]
[326707269,1715274644234,-151.0,0.0002999,2]
[326707270,1715274644243,-151.0,0.0002999,2]
[326707271,1715274644253,-151.0,0.0002999,2]
[326707272,1715274644262,-151.0,0.0002999,2]
[326707273,1715274644272,-151.0,0.0002999,2]
[326707274,1715274644282,-151.0,0.0002999,2]
[326707275,1715274644291,-3778.05622727,0.00029998,2]
[326707276,1715274644300,-186.40770412,0.00029998,2]
[326707277,1715274644310,-1270.74820286,0.00029998,2]
[326707278,1715274644319,-3665.75195584,0.00029998,2]
[326707279,1715274644329,-1258.73676284,0.00029998,2]
[326707280,1715274644339,-5266.11358225,0.00029998,2]
[326707281,1715274644348,-150.01,0.00029998,2]
[326707282,1715274644357,-155.06045852,0.00029998,2]
[326707283,1715274644366,-155.0,0.00029998,2]
[326707284,1715274644376,-574.34871661,0.00029998,2]
[326707285,1715274644385,-319.82265445,0.00029998,2]
[326707286,1715274644394,-188.62918423,0.00029998,2]
[326707287,1715274644403,-216.51775787,0.00029998,2]
[326707288,1715274644412,-762.06209404,0.00029998,2]
[326707289,1715274644422,-200.0,0.00029998,2]
[326707290,1715274644431,-3077.0200038,0.00029998,10]
[326707291,1715274644440,-618.22068598,0.00029998,2]
[326707292,1715274644449,-155.49395369,0.00029998,2]
[326707293,1715274644459,-155.96026536,0.00029998,2]
[326707294,1715274644468,-360.01550888,0.00029998,10]
[326707295,1715274644478,-3876.01243216,0.00029998,2]
[326707296,1715274644487,-2584.24381,0.00029998,2]
[326707297,1715274644496,-150.0,0.00029998,2]
[326707298,1715274644506,-500.0,0.00029999,2]
[326707299,1715274644515,-500.0,0.00029999,2]
[326707300,1715274644525,-500.0,0.00029999,2]
[326707301,1715274644534,-233.15441238,0.00029999,2]
[326707302,1715274644543,-500.0,0.00029999,2]
[326707303,1715274644553,-500.0,0.00029999,2]
[326707304,1715274644563,-500.0,0.00029999,2]
[326707305,1715274644572,-500.0,0.00029999,2]
[326707306,1715274644581,-500.0,0.00029999,2]
[326707307,1715274644591,-509.06606363,0.00029999,2]
[326707308,1715274644600,-500.0,0.00029999,2]
[326707309,1715274644609,-227.65679876,0.00029999,2]
[326707310,1715274644619,-500.0,0.00029999,2]
[326707311,1715274644629,-321.57486971,0.00029999,2]
[326707312,1715274644639,-500.0,0.00029999,2]
[326707313,1715274644649,-500.0,0.00029999,2]
[326707314,1715274644659,-500.0,0.00029999,2]
[326707315,1715274644668,-500.0,0.00029999,2]
[326707316,1715274644677,-500.0,0.00029999,2]
[326707317,1715274644687,-500.0,0.00029999,2]
[326707318,1715274644696,-500.0,0.00029999,2]
[326707319,1715274644705,-500.0,0.00029999,2]
[326707320,1715274644715,-429.21733536,0.00029999,2]
[326707321,1715274644726,-500.0,0.00029999,2]
[326707322,1715274644735,-500.0,0.00029999,2]
[326707323,1715274644745,-500.0,0.00029999,2]
[326707324,1715274644755,-500.0,0.00029999,2]
[326707325,1715274644765,-500.0,0.00029999,2]
[326707326,1715274644775,-500.0,0.00029999,2]
[326707327,1715274644786,-500.0,0.00029999,2]
[326707328,1715274644802,-500.0,0.00029999,2]
[326707329,1715274644824,-500.0,0.00029999,2]
[326707330,1715274644843,-500.0,0.00029999,2]
[326707331,1715274644864,-500.0,0.00029999,2]
[326707332,1715274644886,-500.0,0.00029999,2]
[326707333,1715274644905,-545.0,0.00029999,2]
[326707334,1715274644924,-500.0,0.00029999,2]
[326707335,1715274644938,-500.0,0.00029999,2]
[326707336,1715274644957,-500.0,0.00029999,2]
[326707337,1715274644978,-500.0,0.00029999,2]
[326707338,1715274644999,-500.0,0.00029999,2]
[326707339,1715274645016,-200.0,0.00029999,2]
[326707340,1715274645034,-10636.9953339,0.00029999,2]
[326707341,1715274645052,-1326.4397875,0.00029999,2]
[326707342,1715274645065,-1432.7037121,0.00029999,2]
[326707343,1715274645084,-2138.8624744,0.00029999,2]
[326707344,1715274645100,-259.3976951,0.00029999,2]
[326707345,1715274645116,-19682.9255345,0.00029999,2]
[326707346,1715274645135,-4366.0813519,0.00029999,2]
[326707347,1715274645150,-1181.1332474,0.00029999,2]
[326707348,1715274645166,-230536.16461095,0.0003,5]
[326707349,1715274645181,-6447.69197829,0.0003,5]
[326707377,1715274646107,-21814.74092,0.0003,5]
[326707378,1715274646119,-2784.36797446,0.0003,5]
[326707379,1715274646130,-310.495,0.0003,5]
[326707380,1715274646264,-1415.55102347,0.0003,5]
[326707381,1715274646275,-2107918.03147655,0.0003,5]
[326707382,1715274646285,-500.0,0.0003,120]
[326707383,1715274646294,-15222.0,0.0003,120]
[326707384,1715274646303,-1512.01476722,0.0003,5]
[326707385,1715274646312,-1021.0,0.0003,120]
[326707386,1715274646322,-10000.0,0.0003,15]